[Event "Bundesturnier Hauptturnier 1 2024"]
[Site "Olten"]
[Date "2024.05.09"]
[Round "2.10"]
[White "Haugner, Jan"]
[Black "Loeffler, Markus"]
[Result "0-1"]
[ECO "B90"]
[WhiteElo "2066"]
[BlackElo "2238"]
[Annotator "ChessBase"]
[PlyCount "46"]
[EventDate "2024.05.09"]
[EventType "tourn"]
[EventCountry "SUI"]
[SourceTitle "playchess.com"]
[Source "ChessBase"]
[SourceQuality "1"]
[TimeControl "5400+30"]

1. e4 {[%emt 0:00:03]} c5 {[%emt 0:02:10]} 2. Nf3 {[%emt 0:00:04]} d6 {[%emt 0:00:04]} 3. d4 {[%emt 0:00:05]} cxd4 {[%emt 0:00:03]} 4. Nxd4 {[%emt 0:00:04]} Nf6 {[%emt 0:00:05]} 5. Nc3 {[%emt 0:00:03]} a6 {[%emt 0:00:04]} 6. Bd3 {[%emt 0:00:05]} e5 {[%emt 0:00:52]} 7. Nde2 {[%emt 0:00:04]} Be7 {[%emt 0:00:25]} 8. O-O {[%emt 0:00:17]} O-O {[%emt 0:00:09]} 9. Ng3 {[%emt 0:00:24]} Nc6 {[%emt 0:04:50]} 10. Nd5 {[%emt 0:16:26]} h6 {[%emt 0:15:34]} 11. c4 {[%emt 0:08:13]} Rb8 {[%emt 0:01:04]} 12. b3 {[%emt 0:09:51]} b5 {[%emt 0:07:07]} 13. Bb2 {[%emt 0:05:12]} Nxd5 {[%emt 0:08:18]} 14. exd5 {[%emt 0:02:39]} Nb4 {[%emt 0:00:06]} 15. Bb1 {[%emt 0:08:05]} bxc4 {[%emt 0:01:28]} 16. f4 {[%emt 0:05:28]} Qc7 {[%emt 0:06:41]} 17. bxc4 {[%emt 0:09:48]} Qxc4 {[%emt 0:03:43]} 18. fxe5 {[%emt 0:04:26]} Nxd5 {[%emt 0:00:39]} 19. exd6 {[%emt 0:04:28]} Bxd6 {[%emt 0:00:45]} 20. Qd2 {[%emt 0:06:21]} Bf4 {[%emt 0:05:12]} 21. Rxf4 {[%emt 0:02:53]} Qxf4 {[%emt 0:01:23]} 22. Qc2 {[%emt 0:01:32]} Qe3+ {[%emt 0:01:24]} 23. Kf1 {[%emt 0:00:20]} g6 {[%emt 0:02:00]} 0-1

[Event "Bundesturnier Hauptturnier 1 2024"]
[Site "Olten"]
[Date "2024.05.09"]
[Round "2.11"]
[White "Gautier, Anand"]
[Black "Madsen, Michael B."]
[Result "1/2-1/2"]
[ECO "C24"]
[WhiteElo "2274"]
[BlackElo "2067"]
[Annotator "ChessBase"]
[PlyCount "132"]
[EventDate "2024.05.09"]
[EventType "tourn"]
[EventCountry "SUI"]
[SourceTitle "playchess.com"]
[Source "ChessBase"]
[SourceQuality "1"]
[TimeControl "5400+30"]

1. e4 {[%emt 0:04:29]} e5 {[%emt 0:00:15]} 2. Bc4 {[%emt 0:00:07]} Nf6 {[%emt 0:00:38]} 3. d3 {[%emt 0:00:03]} c6 {[%emt 0:00:45]} 4. Nf3 {[%emt 0:00:07]} d6 {[%emt 0:00:25]} 5. O-O {[%emt 0:00:05]} Be7 {[%emt 0:00:20]} 6. a4 {[%emt 0:00:11]} O-O {[%emt 0:00:30]} 7. Nc3 {[%emt 0:00:04]} Nbd7 {[%emt 0:01:45]} 8. Be3 {[%emt 0:11:50]} Qa5 {[%emt 0:09:56]} 9. Bd2 {[%emt 0:05:30]} Qc7 {[%emt 0:02:46]} 10. Re1 {[%emt 0:01:53]} Nc5 {[%emt 0:03:35]} 11. h3 {[%emt 0:09:11]} Be6 {[%emt 0:02:30]} 12. Bxe6 {[%emt 0:03:27]} Nxe6 {[%emt 0:00:22]} 13. Ne2 {[%emt 0:00:35]} Rfe8 {[%emt 0:02:16]} 14. Ng3 {[%emt 0:00:27]} g6 {[%emt 0:00:23]} 15. c3 {[%emt 0:03:49]} Bf8 {[%emt 0:04:12]} 16. Qc2 {[%emt 0:01:59]} Bg7 {[%emt 0:01:01]} 17. a5 {[%emt 0:05:54]} d5 {[%emt 0:10:25]} 18. Be3 {[%emt 0:03:06]} c5 {[%emt 0:11:57]} 19. Ng5 {[%emt 0:06:42]} Nd8 {[%emt 0:07:09]} 20. Qa4 {[%emt 0:03:08]} d4 {[%emt 0:09:17]} 21. cxd4 {[%emt 0:07:29]} cxd4 {[%emt 0:00:15]} 22. Bd2 {[%emt 0:00:39]} a6 {[%emt 0:08:47]} 23. Rec1 {[%emt 0:14:49]} Nc6 {[%emt 0:02:14]} 24. b4 {[%emt 0:02:14]} Rec8 {[%emt 0:06:38]} 25. b5 {[%emt 0:01:21]} axb5 {[%emt 0:00:25]} 26. Qxb5 {[%emt 0:00:01]} Ra7 {[%emt 0:05:03]} 27. Ne2 {[%emt 0:05:31]} Rca8 {[%emt 0:05:13]} 28. f4 {[%emt 0:03:58]} Ne8 {[%emt 0:01:53]} 29. fxe5 {[%emt 0:02:05]} Qxe5 {[%emt 0:00:37]} 30. Rc5 {[%emt 0:00:58]} Qe7 {[%emt 0:00:09]} 31. Rcc1 {[%emt 0:02:49]} Bh6 {[%emt 0:00:45]} 32. Nf3 {[%emt 0:01:03]} Bxd2 {[%emt 0:00:06]} 33. Nxd2 {[%emt 0:00:08]} Rxa5 {[%emt 0:00:11]} 34. Rxa5 {[%emt 0:00:01]} Rxa5 {[%emt 0:00:08]} 35. Qb2 {[%emt 0:00:26]} Qg5 {[%emt 0:04:29]} 36. Nc4 {[%emt 0:00:45]} Rb5 {[%emt 0:00:26]} 37. Qa3 {[%emt 0:01:11]} Nc7 {[%emt 0:00:21]} 38. Rf1 {[%emt 0:00:47]} Qc5 {[%emt 0:00:46]} 39. Qa1 {[%emt 0:00:35]} Rb3 {[%emt 0:00:28]} 40. Qd1 {[%emt 0:00:25]} Rb4 {[%emt 0:00:17]} 41. Kh1 {[%emt 0:00:35]} b5 {[%emt 0:00:10]} 42. Nd2 {[%emt 0:00:24]} Ne6 {[%emt 0:00:35]} 43. Nb3 {[%emt 0:00:34]} Qd6 {[%emt 0:00:32]} 44. Qc2 {[%emt 0:00:27]} Ne5 {[%emt 0:00:14]} 45. Rc1 {[%emt 0:00:34]} Kg7 {[%emt 0:00:37]} 46. Nd2 {[%emt 0:00:29]} Ra4 {[%emt 0:00:31]} 47. Rb1 {[%emt 0:00:29]} Qa6 {[%emt 0:01:05]} 48. Nf3 {[%emt 0:00:32]} Nxf3 {[%emt 0:00:16]} 49. gxf3 {[%emt 0:00:01]} Ra2 {[%emt 0:00:10]} 50. Rb2 {[%emt 0:00:24]} Rxb2 {[%emt 0:00:12]} 51. Qxb2 {[%emt 0:00:00]} Qa4 {[%emt 0:00:10]} 52. Kg2 {[%emt 0:01:17]} g5 {[%emt 0:00:57]} 53. Kf2 {[%emt 0:00:13]} Kg6 {[%emt 0:00:15]} 54. Qc1 {[%emt 0:00:54]} Qa2 {[%emt 0:00:59]} 55. Ke1 {[%emt 0:00:41]} b4 {[%emt 0:00:23]} 56. f4 {[%emt 0:00:26]} gxf4 {[%emt 0:00:28]} 57. Nxf4+ {[%emt 0:00:03]} Nxf4 {[%emt 0:00:03]} 58. Qxf4 {[%emt 0:00:03]} Qb1+ {[%emt 0:00:17]} 59. Kd2 {[%emt 0:00:56]} Qb2+ {[%emt 0:00:30]} 60. Kd1 {[%emt 0:00:11]} Qb3+ {[%emt 0:00:06]} 61. Kd2 {[%emt 0:00:14]} Qc3+ {[%emt 0:00:06]} 62. Ke2 {[%emt 0:00:12]} b3 {[%emt 0:01:50]} 63. Qf5+ {[%emt 0:00:05]} Kg7 {[%emt 0:00:55]} 64. Qg5+ {[%emt 0:00:06]} Kf8 {[%emt 0:00:34]} 65. Qd8+ {[%emt 0:00:03]} Kg7 {[%emt 0:00:10]} 66. Qg5+ {[%emt 0:00:03]} Kf8 {[%emt 0:00:15]} 1/2-1/2

[Event "Bundesturnier Hauptturnier 1 2024"]
[Site "Olten"]
[Date "2024.05.09"]
[Round "2.12"]
[White "Musaelyan, Arshavir"]
[Black "Gantner, Matthias"]
[Result "1/2-1/2"]
[ECO "D02"]
[WhiteElo "1995"]
[BlackElo "2237"]
[Annotator "ChessBase"]
[PlyCount "118"]
[EventDate "2024.05.09"]
[EventType "tourn"]
[EventCountry "SUI"]
[SourceTitle "playchess.com"]
[Source "ChessBase"]
[SourceQuality "1"]
[TimeControl "5400+30"]

1. d4 {[%emt 0:00:09]} Nf6 {[%emt 0:00:06]} 2. Nf3 {[%emt 0:00:04]} d5 {[%emt 0:00:19]} 3. g3 {[%emt 0:00:10]} e6 {[%emt 0:00:53]} 4. Bg2 {[%emt 0:00:10]} b5 {[%emt 0:01:52]} 5. O-O {[%emt 0:00:44]} Nbd7 {[%emt 0:00:45]} 6. a4 {[%emt 0:02:19]} b4 {[%emt 0:00:11]} 7. c4 {[%emt 0:00:10]} bxc3 {[%emt 0:00:58]} 8. Nxc3 {[%emt 0:03:22]} Bb4 {[%emt 0:01:02]} 9. Ne5 {[%emt 0:25:01]} c5 {[%emt 0:08:47]} 10. Nd3 {[%emt 0:06:24]} a5 {[%emt 0:08:06]} 11. Nb5 {[%emt 0:06:51]} O-O {[%emt 0:08:38]} 12. Bf4 {[%emt 0:09:59]} Qb6 {[%emt 0:00:19]} 13. Bd6 {[%emt 0:04:31]} Re8 {[%emt 0:00:08]} 14. dxc5 {[%emt 0:01:00]} Nxc5 {[%emt 0:00:33]} 15. Bxc5 {[%emt 0:00:48]} Bxc5 {[%emt 0:00:09]} 16. Nxc5 {[%emt 0:00:03]} Qxc5 {[%emt 0:00:07]} 17. Rc1 {[%emt 0:00:10]} Qb4 {[%emt 0:01:26]} 18. Nc7 {[%emt 0:00:26]} Bd7 {[%emt 0:03:33]} 19. b3 {[%emt 0:02:39]} Rab8 {[%emt 0:00:39]} 20. Nxe8 {[%emt 0:00:10]} Bxe8 {[%emt 0:00:06]} 21. Rb1 {[%emt 0:04:01]} Nd7 {[%emt 0:01:18]} 22. Qe1 {[%emt 0:09:34]} Nc5 {[%emt 0:18:16]} 23. Qxb4 {[%emt 0:00:20]} Rxb4 {[%emt 0:00:05]} 24. Rfc1 {[%emt 0:00:39]} Nxb3 {[%emt 0:01:28]} 25. Rc8 {[%emt 0:00:42]} Kf8 {[%emt 0:00:05]} 26. Ra8 {[%emt 0:01:42]} Ke7 {[%emt 0:02:24]} 27. Rxa5 {[%emt 0:01:01]} Rxa4 {[%emt 0:00:13]} 28. Rxa4 {[%emt 0:00:21]} Bxa4 {[%emt 0:00:09]} 29. e3 {[%emt 0:00:40]} f5 {[%emt 0:05:15]} 30. Bf1 {[%emt 0:00:29]} Nc5 {[%emt 0:01:10]} 31. Bb5 {[%emt 0:01:06]} Bxb5 {[%emt 0:03:21]} 32. Rxb5 {[%emt 0:00:40]} Ne4 {[%emt 0:00:09]} 33. f3 {[%emt 0:01:45]} Nd6 {[%emt 0:00:29]} 34. Ra5 {[%emt 0:00:15]} Kf6 {[%emt 0:01:00]} 35. Ra7 {[%emt 0:02:05]} h6 {[%emt 0:05:02]} 36. h4 {[%emt 0:08:35]} h5 {[%emt 0:05:24]} 37. Kf2 {[%emt 0:00:33]} Nf7 {[%emt 0:00:51]} 38. Ra8 {[%emt 0:01:30]} Ne5 {[%emt 0:01:56]} 39. Ke2 {[%emt 0:00:34]} Nf7 {[%emt 0:01:37]} 40. Rb8 {[%emt 0:01:43]} Nd6 {[%emt 0:01:23]} 41. Kd3 {[%emt 0:01:47]} Nc4 {[%emt 0:03:18]} 42. Rh8 {[%emt 0:02:25]} Ne5+ {[%emt 0:00:30]} 43. Ke2 {[%emt 0:00:08]} Kg6 {[%emt 0:02:40]} 44. Re8 {[%emt 0:00:15]} Kf6 {[%emt 0:00:21]} 45. Rh8 {[%emt 0:00:19]} Kg6 {[%emt 0:00:04]} 46. Rc8 {[%emt 0:01:02]} Kf6 {[%emt 0:00:15]} 47. Rc7 {[%emt 0:00:26]} Nf7 {[%emt 0:00:25]} 48. Rc6 {[%emt 0:00:56]} Ne5 {[%emt 0:00:17]} 49. Ra6 {[%emt 0:00:24]} Nf7 {[%emt 0:00:54]} 50. f4 {[%emt 0:00:55]} Nh6 {[%emt 0:00:56]} 51. Kd3 {[%emt 0:00:39]} Ng4 {[%emt 0:00:10]} 52. Ra2 {[%emt 0:02:18]} Ke7 {[%emt 0:00:52]} 53. Kd4 {[%emt 0:01:05]} Kf6 {[%emt 0:04:19]} 54. Rb2 {[%emt 0:00:24]} Kf7 {[%emt 0:00:29]} 55. Rc2 {[%emt 0:00:42]} Kf6 {[%emt 0:00:06]} 56. Ra2 {[%emt 0:00:11]} Kf7 {[%emt 0:00:15]} 57. Re2 {[%emt 0:00:43]} Ke7 {[%emt 0:00:41]} 58. Rb2 {[%emt 0:00:38]} Kf7 {[%emt 0:00:12]} 59. Ra2 {[%emt 0:00:36]} Kf6 {[%emt 0:00:13]} 1/2-1/2

[Event "Bundesturnier Hauptturnier 1 2024"]
[Site "Olten"]
[Date "2024.05.10"]
[Round "3.1"]
[White "Loeffler, Markus"]
[Black "Bauer, Christian"]
[Result "1-0"]
[ECO "C11"]
[WhiteElo "2238"]
[BlackElo "2576"]
[Annotator "ChessBase"]
[PlyCount "129"]
[EventDate "2024.05.09"]
[EventType "tourn"]
[EventCountry "SUI"]
[SourceTitle "playchess.com"]
[Source "ChessBase"]
[SourceQuality "1"]
[TimeControl "5400+30"]

1. e4 {[%emt 0:00:07]} e6 {[%emt 0:00:16]} 2. d4 {[%emt 0:00:06]} d5 {[%emt 0:00:01]} 3. Nc3 {[%emt 0:00:06]} Bb4 {[%emt 0:00:11]} 4. e5 {[%emt 0:00:02]} Bf8 {[%emt 0:00:09]} 5. f4 {[%emt 0:15:55]} c5 {[%emt 0:00:30]} 6. Nf3 {[%emt 0:00:10]} Nh6 {[%emt 0:00:43]} 7. Be3 {[%emt 0:02:15]} b6 {[%emt 0:02:03]} 8. Bb5+ {[%emt 0:08:10]} Bd7 {[%emt 0:01:34]} 9. Bd3 {[%emt 0:02:37]} Nc6 {[%emt 0:10:31]} 10. Qd2 {[%emt 0:00:59]} c4 {[%emt 0:14:06]} 11. Be2 {[%emt 0:00:06]} b5 {[%emt 0:00:40]} 12. h3 {[%emt 0:04:59]} Nf5 {[%emt 0:05:07]} 13. Bf2 {[%emt 0:01:30]} h5 {[%emt 0:00:02]} 14. Nd1 {[%emt 0:02:37]} b4 {[%emt 0:00:49]} 15. c3 {[%emt 0:01:35]} Rb8 {[%emt 0:02:48]} 16. Ne3 {[%emt 0:01:27]} bxc3 {[%emt 0:05:06]} 17. bxc3 {[%emt 0:00:05]} Nxe3 {[%emt 0:00:06]} 18. Qxe3 {[%emt 0:01:05]} Ba3 {[%emt 0:03:12]} 19. O-O {[%emt 0:01:25]} Ne7 {[%emt 0:01:54]} 20. Rab1 {[%emt 0:02:47]} Rb6 {[%emt 0:02:12]} 21. Qd2 {[%emt 0:03:53]} Ng6 {[%emt 0:07:09]} 22. Be3 {[%emt 0:02:14]} h4 {[%emt 0:10:16]} 23. Qc2 {[%emt 0:07:13]} Ne7 {[%emt 0:03:27]} 24. Bc1 {[%emt 0:10:17]} Bxc1 {[%emt 0:01:05]} 25. Rfxc1 {[%emt 0:01:13]} Nf5 {[%emt 0:00:41]} 26. Bd1 {[%emt 0:01:33]} O-O {[%emt 0:05:44]} 27. Qf2 {[%emt 0:00:47]} Ra6 {[%emt 0:03:55]} 28. Rb2 {[%emt 0:02:03]} Ra3 {[%emt 0:00:34]} 29. Qd2 {[%emt 0:08:43]} Qa5 {[%emt 0:01:44]} 30. Nh2 {[%emt 0:00:20]} Bc6 {[%emt 0:08:52]} 31. Nf1 {[%emt 0:00:57]} f6 {[%emt 0:02:51]} 32. Bg4 {[%emt 0:00:17]} fxe5 {[%emt 0:01:26]} 33. fxe5 {[%emt 0:00:02]} Bd7 {[%emt 0:01:34]} 34. Bxf5 {[%emt 0:01:51]} exf5 35. Nh2 {[%emt 0:01:42]} f4 {[%emt 0:01:05]} 36. Nf3 {[%emt 0:00:02]} Bf5 {[%emt 0:00:40]} 37. Nxh4 {[%emt 0:04:17]} Be4 38. Nf3 {[%emt 0:00:18]} Qd8 {[%emt 0:01:32]} 39. Kh2 {[%emt 0:00:58]} Ra6 {[%emt 0:00:29]} 40. Qf2 {[%emt 0:01:16]} Rg6 {[%emt 0:00:03]} 41. Qh4 {[%emt 0:02:26]} Qd7 {[%emt 0:00:22]} 42. Rf1 {[%emt 0:02:53]} Rh6 {[%emt 0:02:51]} 43. Qe1 {[%emt 0:00:36]} Qe7 {[%emt 0:01:29]} 44. Kg1 {[%emt 0:01:29]} Rg6 {[%emt 0:00:29]} 45. Rff2 {[%emt 0:02:37]} Rg3 {[%emt 0:00:43]} 46. Nd2 {[%emt 0:00:35]} Bd3 {[%emt 0:01:52]} 47. Rxf4 {[%emt 0:01:56]} Rxg2+ {[%emt 0:00:01]} 48. Kxg2 {[%emt 0:00:05]} Rxf4 {[%emt 0:00:02]} 49. Rb8+ {[%emt 0:00:23]} Kh7 {[%emt 0:00:53]} 50. Qg3 {[%emt 0:00:16]} Rf5 {[%emt 0:00:51]} 51. Kh2 {[%emt 0:02:15]} Be2 {[%emt 0:00:41]} 52. Qe3 {[%emt 0:01:25]} Qh4 {[%emt 0:00:29]} 53. Rb2 {[%emt 0:00:35]} Qe1 {[%emt 0:00:35]} 54. Ne4 {[%emt 0:00:55]} Rf1 {[%emt 0:00:33]} 55. Ng5+ {[%emt 0:00:53]} Kg6 {[%emt 0:00:17]} 56. Rxe2 {[%emt 0:00:03]} Rh1+ {[%emt 0:00:04]} 57. Kg2 {[%emt 0:00:07]} Qf1+ {[%emt 0:00:09]} 58. Kg3 {[%emt 0:00:03]} Qf5 {[%emt 0:01:29]} 59. h4 {[%emt 0:00:27]} Qf1 {[%emt 0:00:25]} 60. Rg2 {[%emt 0:00:35]} Qb1 {[%emt 0:00:29]} 61. e6 {[%emt 0:00:17]} Re1 {[%emt 0:00:09]} 62. Qf3 {[%emt 0:00:15]} Rf1 {[%emt 0:00:31]} 63. Qxd5 {[%emt 0:00:34]} Qe1+ {[%emt 0:00:45]} 64. Kg4 {[%emt 0:00:44]} Qd1+ {[%emt 0:00:32]} 65. Nf3 {[%emt 0:00:07]} 1-0

[Event "Bundesturnier Hauptturnier 1 2024"]
[Site "Olten"]
[Date "2024.05.10"]
[Round "3.2"]
[White "Baenziger, Fabian"]
[Black "Pfaltz, Maximilian"]
[Result "1-0"]
[ECO "A39"]
[WhiteElo "2415"]
[BlackElo "1994"]
[Annotator "TA"]
[PlyCount "47"]
[EventDate "2024.05.09"]
[EventType "tourn"]
[EventCountry "SUI"]
[SourceTitle "playchess.com"]
[Source "ChessBase"]
[SourceQuality "1"]
[TimeControl "5400+30"]

{[%evp 21,47,20,50,28,48,54,72,66,73,70,120,127,177,189,182,192,501,518,494,517,513,525,585,585,686,656,681,704]} 1. c4 {[%emt 0:00:09]} Nf6 {[%emt 0:00:09]} 2. Nc3 {[%emt 0:00:20]} g6 {[%emt 0:00:06]} 3. g3 {[%emt 0:00:15]} Bg7 {[%emt 0:00:06]} 4. Bg2 {[%emt 0:00:07]} O-O {[%emt 0:00:10]} 5. d4 {[%emt 0:01:22]} c5 {[%emt 0:01:31]} 6. Nf3 {[%emt 0:05:43]} cxd4 {[%emt 0:04:14]} 7. Nxd4 {[%emt 0:00:15]} Nc6 {[%emt 0:00:49]} 8. O-O {[%emt 0:00:15]} Nxd4 {[%emt 0:06:53]} 9. Qxd4 {[%emt 0:00:11]} d6 {[%emt 0:00:18]} 10. Qd3 {[%emt 0:12:06]} a6 {[%emt 0:01:25]} 11. Rd1 {[%emt 0:02:49]} Qc7 {[%emt 0:00:17]} 12. Bg5 {[%emt 0:03:40]} Be6 {[%emt 0:05:43]} 13. b3 {[%emt 0:01:33]} h6 {[%emt 0:00:40]} 14. Bf4 {[%emt 0:04:23] White is better.} Rfd8 {[%emt 0:09:34]} 15. Rac1 {[%emt 0:01:03]} Bd7 {[%emt 0:07:01]} (15... Qd7 $14) 16. c5 $16 {[%emt 0:09:07][%cal Bc4c5,Bc5d6][%mdl 32] White is more active.} Bf5 {[%emt 0:08:46]} (16... Qxc5 $16 17. Nd5 (17. Bxb7 Ng4 $14) 17... Qb5) 17. cxd6 $18 {[%emt 0:02:56]} Qa5 {[%emt 0:05:15]} 18. Qd2 {[%emt 0:02:19][%cal Oc3d5] [#] Black must now prevent Nd5!} g5 $2 {[%emt 0:01:04]} (18... Kh7 {is more resistant.} 19. Na4 (19. Bxb7 Rab8 $18) 19... Qxd2 20. Rxd2 exd6 21. Bxb7 Ra7) 19. Nd5 {[%emt 0:00:24] White is clearly winning.} Qxd2 {[%emt 0:03:27]} 20. Nxe7+ {[%emt 0:00:12]} (20. Bxd2 Nxd5 21. Ba5 (21. Bxd5 Rxd6 22. Ba5 Rc8 $16) 21... Rxd6 22. Bxd5 (22. Rxd5 Rxd5 23. Bxd5 Rc8 $14) 22... Rc8 23. Rxc8+ (23. Bxb7 Rc2 $14) 23... Bxc8 $16) 20... Kh8 {[%emt 0:00:40]} 21. Bxd2 {[%emt 0:00:41]} Be4 {[%emt 0:00:13]} 22. Ba5 {[%emt 0:01:43] [#] Threatens to win with Bxe4.} Rd7 {[%emt 0:00:14]} 23. Nc8 {[%emt 0:00:36]} Bxg2 {[%emt 0:02:51]} 24. Kxg2 {[%emt 0:00:07] Black got outplayed after the opening.   Weighted Error Value: White=0.02 (flawless) /Black=0.51.  Mistake:       	---       	Black=3      OK:         	White=8     	Black=2      Best:        	White=1     	---} 1-0

[Event "Bundesturnier Hauptturnier 1 2024"]
[Site "Olten"]
[Date "2024.05.10"]
[Round "3.3"]
[White "Pahud, Cedric"]
[Black "Willems, Niels"]
[Result "0-1"]
[ECO "A34"]
[WhiteElo "2135"]
[BlackElo "2329"]
[Annotator "TA"]
[PlyCount "60"]
[EventDate "2024.05.09"]
[EventType "tourn"]
[EventCountry "SUI"]
[SourceTitle "playchess.com"]
[Source "ChessBase"]
[SourceQuality "1"]
[TimeControl "5400+30"]

{[%evp 24,60,-14,-20,-16,-58,-43,-68,-71,-101,-72,-79,-75,-69,-79,-70,-78,-96,-47,-87,-85,-94,-63,-102,-73,-99,-30,-81,-45,-212,-110,-104,-114,-646,-638,-642,-633,-838,-826]} 1. Nf3 {[%emt 0:00:03]} Nf6 {[%emt 0:00:11]} 2. c4 {[%emt 0:00:15]} c5 {[%emt 0:00:19]} 3. g3 {[%emt 0:04:36]} Nc6 {[%emt 0:00:52]} 4. Bg2 {[%emt 0:00:06]} d5 {[%emt 0:00:07]} 5. cxd5 {[%emt 0:02:59]} Nxd5 {[%emt 0:00:15]} 6. Nc3 {[%emt 0:00:50]} Nc7 {[%emt 0:01:11]} 7. d3 {[%emt 0:02:21]} e5 {[%emt 0:03:29]} 8. O-O {[%emt 0:07:35]} Be7 {[%emt 0:01:22]} 9. Nd2 {[%emt 0:00:35]} Bd7 {[%emt 0:04:03]} 10. a4 {[%emt 0:05:56]} O-O {[%emt 0:08:35]} 11. Nc4 {[%emt 0:00:14]} f6 {[%emt 0:04:57]} 12. f4 {[%emt 0:02:04]} exf4 {[%emt 0:00:59]} 13. Bxf4 {[%emt 0:01:57]} Be6 {[%emt 0:07:07]} 14. e4 {[%emt 0:18:16]} Nb4 {[%emt 0:05:41]} 15. Ne3 {[%emt 0:01:59]} Bd6 {[%emt 0:04:50] Black is slightly better.} 16. Ncd5 {[%emt 0:08:29]} Bxf4 {[%emt 0:02:17]} 17. Nxf4 {[%emt 0:00:44]} Qd4 {[%emt 0:04:25][%csl LRb2,LRe3]} 18. Qd2 {[%emt 0:02:20]} Rad8 {[%emt 0:09:30]} 19. Ra3 {[%emt 0:01:57]} Nc6 {[%emt 0:12:00]} 20. Kh1 {[%emt 0:08:16]} Ne5 {[%emt 0:03:24]} (20... Rfe8 $17) 21. Qe2 {[%emt 0:04:39]} Rfe8 {[%emt 0:07:38]} 22. Rd1 {[%emt 0:00:34]} Bc8 {[%emt 0:03:38]} 23. h3 {[%emt 0:04:22]} b6 {[%emt 0:02:21]} 24. Kh2 {[%emt 0:11:05]} g6 {[%emt 0:01:53] Black is much more active.} ({Better is} 24... Nc6 $17) 25. Rc1 {[%emt 0:03:15]} (25. a5 $11) 25... Ba6 {[%emt 0:01:58][%cal Ra6d3]} 26. Nc4 $2 {[%emt 0:00:48] [#]} (26. Rd1 $1 $15) 26... Kg7 {[%emt 0:04:21]} ({Black should play} 26... Ne6 $1 $19 {[%cal Re6f4] White must now prevent ...Nxf4.} 27. Nxe6 Rxe6 28. Nxe5 fxe5 (28... Rxe5 29. Rcc3 $17)) 27. Rac3 {[%emt 0:00:08]} Ne6 {[%emt 0:02:07] Threatens to win with ...Nxf4.} 28. h4 $2 {[%emt 0:01:31][%mdl 8192]} (28. Nd5 $17) 28... Nxf4 $19 {[%emt 0:00:30] Black is clearly winning.} 29. gxf4 {[%emt 0:00:01]} Nxd3 {[%emt 0:00:24]} 30. Rd1 {[%emt 0:03:44][%cal Rc3d3]} Bxc4 {[%emt 0:00:09] Weighted Error Value: White=0.80/Black=0.20 (precise) .  Loses game:     	White=2     	---        Mistake:       	White=1     	Black=3      Inaccurate:     	White=5     	Black=2      OK:         	White=2     	Black=6      Best:        	---       	Black=1} 0-1

[Event "Bundesturnier Hauptturnier 1 2024"]
[Site "Olten"]
[Date "2024.05.10"]
[Round "3.4"]
[White "Gut, Lionel"]
[Black "Toktomushev, Teimur"]
[Result "1/2-1/2"]
[ECO "D36"]
[WhiteElo "2124"]
[BlackElo "2295"]
[Annotator "RC"]
[PlyCount "82"]
[EventDate "2024.05.09"]
[EventType "tourn"]
[EventCountry "SUI"]
[SourceTitle "playchess.com"]
[Source "ChessBase"]
[SourceQuality "1"]
[TimeControl "5400+30"]

1. d4 {[%emt 0:00:02]} d5 {[%emt 0:05:31]} 2. c4 {[%emt 0:00:05]} e6 {[%emt 0:00:17]} 3. Nc3 {[%emt 0:00:05]} Nf6 {[%emt 0:00:18]} 4. cxd5 {[%emt 0:00:06]} exd5 {[%emt 0:00:14]} 5. Bg5 {[%emt 0:00:08]} Be7 {[%emt 0:00:20]} 6. e3 {[%emt 0:00:06]} c6 {[%emt 0:00:18]} 7. Bd3 {[%emt 0:00:05]} Nbd7 {[%emt 0:00:16]} 8. Qc2 {[%emt 0:00:08]} O-O {[%emt 0:12:08]} 9. Nge2 {[%emt 0:00:15]} Re8 {[%emt 0:00:41]} 10. O-O {[%emt 0:00:36]} Nf8 {[%emt 0:04:36]} 11. Rae1 {[%emt 0:00:37]} b5 {[%emt 0:15:37]} 12. b3 {[%emt 0:10:25]} Bb7 {[%emt 0:14:32]} 13. Rd1 {[%emt 0:11:52]} h6 {[%emt 0:12:20]} 14. Bh4 {[%emt 0:03:15]} a6 {[%emt 0:05:09]} 15. a4 {[%emt 0:15:52]} b4 {[%emt 0:02:38]} 16. Nb1 {[%emt 0:03:13]} a5 {[%emt 0:08:07]} 17. Nd2 {[%emt 0:05:16]} Ne6 {[%emt 0:03:13]} 18. Nf3 {[%emt 0:04:04]} Rc8 {[%emt 0:04:16]} 19. Bf5 {[%emt 0:09:22]} Nd7 {[%emt 0:03:04]} 20. Bg3 {[%emt 0:02:52]} c5 {[%emt 0:01:45]} 21. dxc5 {[%emt 0:01:19]} Ndxc5 {[%emt 0:00:30]} 22. Qb1 {[%emt 0:02:02]} Qb6 {[%emt 0:04:34]} 23. Nfd4 {[%emt 0:04:11]} Ba6 {[%emt 0:01:05]} 24. Rfe1 {[%emt 0:01:28]} Bf6 {[%emt 0:00:27]} 25. Nxe6 {[%emt 0:04:00]} Nxe6 {[%emt 0:00:29]} 26. Rxd5 {[%emt 0:01:44]} Rcd8 {[%emt 0:00:04]} 27. Bxe6 {[%emt 0:00:51]} Rxe6 {[%emt 0:00:58]} 28. Nf4 {[%emt 0:00:50]} Ree8 {[%emt 0:00:24]} 29. Red1 {[%emt 0:01:51]} Bb7 {[%emt 0:00:21]} 30. Rxd8 {[%emt 0:00:19]} Rxd8 {[%emt 0:00:04]} 31. Rxd8+ {[%emt 0:00:33]} Qxd8 {[%emt 0:00:06]} 32. Qd3 {[%emt 0:03:50]} Qc8 {[%emt 0:00:56]} 33. h4 {[%emt 0:01:18]} Qc6 {[%emt 0:01:08]} 34. h5 {[%emt 0:00:38]} Bg5 {[%emt 0:00:28]} 35. f3 {[%emt 0:00:57]} Qc1+ {[%emt 0:00:31]} 36. Kh2 {[%emt 0:00:10]} Qc5 {[%emt 0:00:32]} 37. Qd7 {[%emt 0:02:19]} Bc6 {[%emt 0:00:31]} 38. Qd4 {[%emt 0:00:52]} Qxd4 {[%emt 0:00:30]} 39. exd4 {[%emt 0:00:01]} Bxf4 {[%emt 0:00:31]} 40. Bxf4 {[%emt 0:00:03]} Bd5 {[%emt 0:00:13]} 41. Bc7 {[%emt 0:00:05]} Bxb3 {[%emt 0:00:07]} 1/2-1/2